[Event "Turkish Cup 2022"]
[Site "Sakarya"]
[Date "2022.03.26"]
[Round "3.13"]
[White "Yazici, Ugur Doga"]
[Black "Ozcan, Kadir Kutay"]
[Result "1-0"]
[ECO "B51"]
[WhiteElo "2195"]
[BlackElo "1878"]
[Annotator "NA"]
[PlyCount "89"]
[EventDate "2022.03.25"]
[EventType "swiss"]
[EventCountry "TUR"]
[SourceTitle "playchess.com"]
[Source "ChessBase"]
[SourceQuality "1"]
[TimeControl "5400+30"]

1. e4 {[%emt 0:01:00]} c5 {[%emt 0:03:00]} 2. Nf3 {[%emt 0:00:30]} d6 {[%emt 0:01:30]} 3. Bb5+ {[%emt 0:00:30]} Nd7 {[%emt 0:00:30]} 4. c3 {[%emt 0:00:30]} Ngf6 {[%emt 0:00:30]} 5. Qe2 {[%emt 0:00:30]} a6 {[%emt 0:00:30]} 6. Ba4 {[%emt 0:00:00]} e6 {[%emt 0:01:30]} 7. O-O {[%emt 0:01:00]} Be7 {[%emt 0:00:30]} 8. Bc2 {[%emt 0:02:30]} O-O {[%emt 0:00:30]} 9. a4 {[%emt 0:00:30]} b6 {[%emt 0:02:30]} 10. d4 {[%emt 0:02:30]} cxd4 {[%emt 0:07:30]} 11. cxd4 {[%emt 0:01:30]} Bb7 {[%emt 0:00:30]} 12. Nc3 {[%emt 0:00:30]} Re8 {[%emt 0:01:30]} 13. Rd1 {[%emt 0:02:30]} Nf8 {[%emt 0:02:30]} 14. h3 {[%emt 0:08:30]} Ng6 $14 {[%emt 0:02:30]} 15. Be3 {[%emt 0:02:30]} Nh5 {[%emt 0:14:30]} 16. d5 {[%emt 0:02:30]} Nhf4 {[%emt 0:03:30]} 17. Qf1 {[%emt 0:00:30]} e5 {[%emt 0:01:30]} 18. g3 {[%emt 0:03:30]} Nh5 {[%emt 0:01:30]} 19. Qe2 {[%emt 0:09:30]} Qd7 {[%emt 0:08:30]} 20. Kh2 {[%emt 0:02:30]} Bd8 {[%emt 0:02:30]} 21. Nd2 {[%emt 0:06:30]} Nf6 {[%emt 0:01:30]} 22. Bd3 {[%emt 0:02:30]} Bc8 {[%emt 0:02:30]} 23. Qf1 {[%emt 0:00:30]} Qe7 {[%emt 0:01:30]} 24. Na2 {[%emt 0:02:30]} a5 {[%emt 0:05:30]} 25. Nc3 {[%emt 0:00:30]} h5 {[%emt 0:02:30]} 26. Nb5 {[%emt 0:04:30]} h4 {[%emt 0:02:30]} 27. Nc4 {[%emt 0:04:30]} hxg3+ {[%emt 0:02:30]} 28. fxg3 {[%emt 0:02:30]} Kh7 {[%emt 0:01:30]} 29. Ncxd6 {[%emt 0:01:30]} Rh8 {[%emt 0:00:30]} 30. Nf5 {[%emt 0:00:30]} Qb4 {[%emt 0:00:30]} 31. Bd2 {[%emt 0:02:30]} Qf8 {[%emt 0:05:30]} 32. Nbd6 {[%emt 0:01:30]} Bxf5 {[%emt 0:01:30]} 33. Nxf5 {[%emt 0:00:30]} Kg8 {[%emt 0:00:30]} 34. Rac1 {[%emt 0:00:30]} Be7 {[%emt 0:01:30]} 35. Rc6 {[%emt 0:02:30]} Bc5 {[%emt 0:02:06]} 36. Qf3 {[%emt 0:01:30]} Rc8 {[%emt 0:01:45]} 37. Bg5 {[%emt 0:06:30]} Rxc6 {[%emt 0:00:14]} 38. dxc6 {[%emt 0:00:00]} Nh7 {[%emt 0:01:47]} 39. Bc1 {[%emt 0:00:00]} Qc8 {[%emt 0:00:53]} 40. Bc4 {[%emt 0:02:30]} Nf6 {[%emt 0:01:13]} 41. Bd5 {[%emt 0:00:30]} Ne7 {[%emt 0:02:10]} 42. Nxe7+ {[%emt 0:03:30]} Bxe7 {[%emt 0:00:03]} 43. Qf5 {[%emt 0:00:50]} Qa6 {[%emt 0:01:55]} 44. Rd2 {[%emt 0:03:36]} Kf8 {[%emt 0:02:08]} 45. c7 {[%emt 0:00:56]} 1-0

[Event "Turkish Cup 2022"]
[Site "Sakarya"]
[Date "2022.03.26"]
[Round "3.14"]
[White "Zor, Alber Kadir"]
[Black "Gur, Tuba"]
[Result "1-0"]
[ECO "B51"]
[WhiteElo "2147"]
[BlackElo "1750"]
[Annotator "ChessBase"]
[PlyCount "49"]
[EventDate "2022.03.25"]
[EventType "swiss"]
[EventCountry "TUR"]
[SourceTitle "playchess.com"]
[Source "ChessBase"]
[SourceQuality "1"]
[TimeControl "5400+30"]

1. e4 {[%emt 0:01:00]} c5 {[%emt 0:01:00]} 2. Nf3 {[%emt 0:00:30]} Nc6 {[%emt 0:00:30]} 3. Bb5 {[%emt 0:00:30]} d6 {[%emt 0:00:30]} 4. O-O {[%emt 0:00:00]} Bg4 {[%emt 0:00:30]} 5. c3 {[%emt 0:00:00]} a6 {[%emt 0:03:30]} 6. Bxc6+ {[%emt 0:01:30]} bxc6 {[%emt 0:00:30]} 7. d4 {[%emt 0:00:30]} cxd4 {[%emt 0:00:30]} 8. cxd4 {[%emt 0:00:00]} Qb6 {[%emt 0:06:30]} 9. Nc3 {[%emt 0:07:00]} e6 {[%emt 0:07:30]} 10. Be3 {[%emt 0:02:30]} d5 {[%emt 0:01:30]} 11. exd5 {[%emt 0:05:30]} Bxf3 {[%emt 0:00:30]} 12. Qxf3 {[%emt 0:00:30]} cxd5 {[%emt 0:00:30]} 13. Rfe1 {[%emt 0:30:30]} Rd8 {[%emt 0:20:30]} 14. Bf4 {[%emt 0:06:30]} Be7 {[%emt 0:11:30]} 15. Qg3 {[%emt 0:02:30]} Rd7 {[%emt 0:07:30]} 16. Qxg7 {[%emt 0:03:30]} Bf6 {[%emt 0:00:30]} 17. Qg3 {[%emt 0:00:30]} Ne7 {[%emt 0:00:30]} 18. Be5 {[%emt 0:07:30]} Rg8 {[%emt 0:03:30]} 19. Qf4 {[%emt 0:05:30]} Bg5 {[%emt 0:00:30]} 20. Qf3 {[%emt 0:00:30]} Bd2 {[%emt 0:04:30]} 21. Red1 {[%emt 0:01:30]} Qxb2 {[%emt 0:03:30]} 22. Na4 {[%emt 0:03:30]} Qb4 {[%emt 0:09:52]} 23. Nc5 {[%emt 0:00:00]} Nf5 {[%emt 0:03:37]} 24. Nxd7 {[%emt 0:01:36]} Kxd7 {[%emt 0:02:30]} 25. Rab1 {[%emt 0:00:37]} 1-0

[Event "Turkish Cup 2022"]
[Site "Sakarya"]
[Date "2022.03.26"]
[Round "3.15"]
[White "Ererdem, Gani Eren"]
[Black "Topuz, Mirac Melih"]
[Result "1-0"]
[ECO "D11"]
[WhiteElo "2134"]
[BlackElo "1515"]
[Annotator "NA"]
[PlyCount "91"]
[EventDate "2022.03.25"]
[EventType "swiss"]
[EventCountry "TUR"]
[SourceTitle "playchess.com"]
[Source "ChessBase"]
[SourceQuality "1"]
[TimeControl "5400+30"]

1. Nf3 {[%emt 0:03:00]} Nf6 {[%emt 0:01:00]} 2. d4 {[%emt 0:00:30]} d5 {[%emt 0:00:30]} 3. c4 {[%emt 0:03:30]} c6 {[%emt 0:03:30]} 4. Qc2 {[%emt 0:03:30]} g6 {[%emt 0:03:30]} 5. Bf4 {[%emt 0:00:30]} Bg7 {[%emt 0:00:00]} 6. e3 {[%emt 0:00:00]} Na6 {[%emt 0:03:00]} 7. Nc3 {[%emt 0:16:00]} Qa5 {[%emt 0:03:30]} 8. c5 {[%emt 0:11:30]} (8. Rc1 $14) 8... Bf5 $11 {[%emt 0:02:30]} 9. Qb3 {[%emt 0:00:30]} (9. Qd2 $14) 9... Nb4 {[%emt 0:01:30]} 10. Rc1 {[%emt 0:00:30]} O-O {[%emt 0:05:30]} 11. a3 {[%emt 0:09:30]} Nd3+ {[%emt 0:01:30]} 12. Bxd3 {[%emt 0:00:30]} Bxd3 {[%emt 0:00:30]} 13. Qxb7 {[%emt 0:00:30]} Rac8 {[%emt 0:03:30]} 14. Rd1 {[%emt 0:13:30]} Bb5 {[%emt 0:02:30]} 15. a4 {[%emt 0:06:30]} Ba6 {[%emt 0:01:30]} 16. Qxa7 {[%emt 0:00:30]} Ne4 {[%emt 0:08:30]} 17. Qb6 {[%emt 0:02:30]} Qxb6 {[%emt 0:00:30]} 18. cxb6 {[%emt 0:00:00]} Nxc3 {[%emt 0:00:30]} 19. bxc3 {[%emt 0:00:00]} Ra8 {[%emt 0:05:30]} 20. Nd2 {[%emt 0:02:30]} e5 {[%emt 0:05:30]} 21. Bxe5 {[%emt 0:17:38]} Bxe5 {[%emt 0:01:30]} 22. dxe5 {[%emt 0:00:01]} Bd3 {[%emt 0:00:30]} 23. Nf3 {[%emt 0:01:54]} Bc4 {[%emt 0:01:30]} 24. Nd4 {[%emt 0:03:06]} Rxa4 {[%emt 0:00:00]} 25. Nxc6 {[%emt 0:01:01]} Ra2 {[%emt 0:01:00]} 26. Rb1 {[%emt 0:00:42]} Ba6 {[%emt 0:06:30]} 27. Nb4 {[%emt 0:01:44]} Ra3 {[%emt 0:21:03]} 28. Nxa6 {[%emt 0:00:41]} Rxa6 {[%emt 0:00:30]} 29. Ke2 {[%emt 0:00:30]} Rb8 {[%emt 0:00:30]} 30. Rhd1 {[%emt 0:00:30]} Ra5 {[%emt 0:00:30]} 31. Rd4 {[%emt 0:00:30]} Rb7 {[%emt 0:00:30]} 32. f4 {[%emt 0:00:30]} Kf8 {[%emt 0:00:30]} 33. e4 {[%emt 0:00:30]} dxe4 {[%emt 0:00:30]} 34. Ke3 {[%emt 0:00:30]} Ra2 {[%emt 0:00:30]} 35. Kxe4 {[%emt 0:00:30]} Rxg2 {[%emt 0:00:30]} 36. Ra4 {[%emt 0:00:23]} Rd2 {[%emt 0:06:01]} 37. Ra7 {[%emt 0:00:06]} Rb8 {[%emt 0:00:24]} 38. c4 {[%emt 0:00:39]} Rbd8 {[%emt 0:04:34]} 39. Rb3 {[%emt 0:00:56]} Re2+ {[%emt 0:04:58]} 40. Kf3 {[%emt 0:00:14]} Rxh2 {[%emt 0:00:17]} 41. Kg3 {[%emt 0:00:58]} Rhd2 {[%emt 0:02:37]} 42. b7 {[%emt 0:01:00]} Rb8 {[%emt 0:00:07]} 43. c5 {[%emt 0:00:58]} Ke7 {[%emt 0:02:20]} 44. c6 {[%emt 0:00:17]} Kd8 {[%emt 0:00:35]} 45. Ra8 {[%emt 0:00:11]} Kc7 {[%emt 0:00:15]} 46. Rxb8 {[%emt 0:00:04]} 1-0

[Event "Turkish Cup 2022"]
[Site "Sakarya"]
[Date "2022.03.26"]
[Round "3.16"]
[White "Isilak, Enes"]
[Black "Arslan, Tayfun"]
[Result "1-0"]
[ECO "E04"]
[WhiteElo "2125"]
[BlackElo "1512"]
[Annotator "NA"]
[PlyCount "131"]
[EventDate "2022.03.25"]
[EventType "swiss"]
[EventCountry "TUR"]
[SourceTitle "playchess.com"]
[Source "ChessBase"]
[SourceQuality "1"]
[TimeControl "5400+30"]

1. d4 {[%emt 0:01:00]} Nf6 {[%emt 0:01:00]} 2. c4 {[%emt 0:00:30]} e6 {[%emt 0:00:00]} 3. g3 {[%emt 0:00:30]} d5 {[%emt 0:00:00]} 4. Nf3 {[%emt 0:00:30]} c5 {[%emt 0:00:30]} 5. Bg2 {[%emt 0:00:30]} Nc6 {[%emt 0:00:30]} 6. O-O {[%emt 0:00:00]} dxc4 {[%emt 0:02:30]} 7. dxc5 {[%emt 0:00:00]} Qxd1 {[%emt 0:00:30]} 8. Rxd1 {[%emt 0:00:30]} Bxc5 {[%emt 0:00:30]} 9. Nbd2 {[%emt 0:00:00]} c3 {[%emt 0:07:30]} 10. bxc3 {[%emt 0:00:00]} O-O {[%emt 0:01:30]} 11. Nb3 {[%emt 0:01:30]} Bb6 {[%emt 0:00:30]} 12. c4 {[%emt 0:02:30]} Ne4 {[%emt 0:00:30]} 13. e3 {[%emt 0:02:30]} e5 {[%emt 0:02:30]} 14. Bb2 {[%emt 0:01:30]} f6 {[%emt 0:01:30]} 15. Nxe5 {[%emt 0:34:30]} Nxf2 {[%emt 0:07:30]} 16. Nxc6 {[%emt 0:00:30]} Nxd1 {[%emt 0:01:30]} 17. Ne7+ {[%emt 0:00:00]} Kh8 {[%emt 0:02:30]} 18. Rxd1 {[%emt 0:00:00]} Bxe3+ {[%emt 0:02:30]} 19. Kh1 {[%emt 0:03:30]} Bg4 {[%emt 0:05:30]} 20. Re1 {[%emt 0:02:30]} Rad8 {[%emt 0:03:30]} 21. Nd5 {[%emt 0:05:30]} Bh6 {[%emt 0:01:30]} 22. h3 {[%emt 0:07:30]} Bc8 {[%emt 0:02:30]} 23. Kg1 {[%emt 0:11:30]} Rfe8 {[%emt 0:04:30]} 24. Rxe8+ {[%emt 0:03:30]} Rxe8 {[%emt 0:00:30]} 25. Kf2 {[%emt 0:00:30]} b6 {[%emt 0:00:30]} 26. Bd4 {[%emt 0:01:30]} Rd8 {[%emt 0:01:30]} 27. Be3 {[%emt 0:10:05]} Ba6 {[%emt 0:02:30]} 28. Nd2 {[%emt 0:06:01]} Bb7 {[%emt 0:04:30]} 29. Bxh6 {[%emt 0:03:20]} gxh6 {[%emt 0:00:30]} 30. Ke3 {[%emt 0:01:10]} b5 {[%emt 0:00:30]} 31. Kd4 {[%emt 0:00:10]} bxc4 {[%emt 0:00:00]} 32. Nxc4 {[%emt 0:00:16]} Kg7 {[%emt 0:02:00]} 33. Nce3 {[%emt 0:01:01]} Kf7 {[%emt 0:01:30]} 34. Be4 {[%emt 0:00:13]} Rd6 {[%emt 0:03:30]} 35. Nc4 {[%emt 0:01:55]} Rd8 {[%emt 0:01:30]} 36. g4 {[%emt 0:00:44]} h5 {[%emt 0:01:30]} 37. Kc5 {[%emt 0:00:06]} Rc8+ {[%emt 0:01:30]} 38. Kd4 {[%emt 0:00:52]} Rd8 {[%emt 0:00:00]} 39. Nce3 {[%emt 0:00:03]} hxg4 {[%emt 0:00:00]} 40. hxg4 {[%emt 0:00:00]} Rh8 {[%emt 0:03:30]} 41. Nf5 {[%emt 0:00:02]} Bxd5 {[%emt 0:00:30]} 42. Bxd5+ {[%emt 0:00:30]} Kg6 {[%emt 0:00:30]} 43. Nd6 {[%emt 0:00:30]} h5 {[%emt 0:00:30]} 44. Bf7+ {[%emt 0:00:30]} Kg5 {[%emt 0:00:30]} 45. Bxh5 {[%emt 0:00:30]} Kf4 {[%emt 0:00:30]} 46. a4 {[%emt 0:00:30]} Rb8 {[%emt 0:00:30]} 47. Kc5 {[%emt 0:00:30]} Rb1 {[%emt 0:00:30]} 48. Nc4 {[%emt 0:02:11]} a5 {[%emt 0:05:30]} 49. Nxa5 {[%emt 0:00:41]} Rh1 {[%emt 0:00:30]} 50. Bf7 {[%emt 0:00:58]} Kxg4 {[%emt 0:00:30]} 51. Nb3 {[%emt 0:00:00]} f5 {[%emt 0:00:30]} 52. Bd5 {[%emt 0:00:07]} Rh6 {[%emt 0:01:30]} 53. Nd4 {[%emt 0:00:10]} Ra6 {[%emt 0:01:30]} 54. Kb5 {[%emt 0:00:07]} Rd6 {[%emt 0:00:30]} 55. Kc5 {[%emt 0:00:30]} Ra6 {[%emt 0:00:00]} 56. Bc6 {[%emt 0:00:25]} f4 {[%emt 0:00:00]} 57. Kb5 {[%emt 0:00:41]} Ra7 {[%emt 0:00:30]} 58. Nf3 {[%emt 0:00:00]} Re7 {[%emt 0:02:30]} 59. a5 {[%emt 0:00:08]} Re3 {[%emt 0:00:30]} 60. a6 {[%emt 0:01:00]} Rxf3 {[%emt 0:02:30]} 61. Bxf3+ {[%emt 0:00:30]} Kxf3 {[%emt 0:00:30]} 62. a7 {[%emt 0:00:00]} Ke2 {[%emt 0:01:30]} 63. a8=Q {[%emt 0:00:00]} f3 {[%emt 0:00:30]} 64. Qe4+ {[%emt 0:00:13]} Kf2 {[%emt 0:00:30]} 65. Kc4 {[%emt 0:00:07]} Kg3 {[%emt 0:00:30]} 66. Kd3 {[%emt 0:00:00]} 1-0

[Event "Turkish Cup 2022"]
[Site "Sakarya"]
[Date "2022.03.26"]
[Round "3.17"]
[White "Caliskan, Soner"]
[Black "Caputcuoglu, Zeki Berke"]
[Result "0-1"]
[ECO "C54"]
[WhiteElo "1661"]
[BlackElo "2095"]
[Annotator "NA"]
[PlyCount "50"]
[EventDate "2022.03.25"]
[EventType "swiss"]
[EventCountry "TUR"]
[SourceTitle "playchess.com"]
[Source "ChessBase"]
[SourceQuality "1"]
[TimeControl "5400+30"]

1. e4 {[%emt 0:00:00]} e5 {[%emt 0:03:00]} 2. Nf3 {[%emt 0:01:30]} Nc6 {[%emt 0:02:30]} 3. Bc4 {[%emt 0:00:30]} Bc5 {[%emt 0:00:00]} 4. c3 {[%emt 0:02:30]} Nf6 {[%emt 0:00:00]} 5. d4 {[%emt 0:00:30]} exd4 {[%emt 0:00:30]} 6. cxd4 {[%emt 0:00:00]} Bb4+ {[%emt 0:00:00]} 7. Bd2 {[%emt 0:00:00]} Bxd2+ {[%emt 0:01:00]} 8. Nbxd2 {[%emt 0:00:30]} d5 {[%emt 0:00:00]} 9. exd5 {[%emt 0:01:30]} Nxd5 {[%emt 0:00:00]} 10. O-O {[%emt 0:01:30]} O-O {[%emt 0:00:00]} 11. Re1 {[%emt 0:03:30]} Nb6 {[%emt 0:02:00]} 12. Bb3 {[%emt 0:04:30]} Bg4 {[%emt 0:13:30]} 13. Re4 {[%emt 0:17:30]} Bh5 {[%emt 0:01:30]} 14. Qe2 {[%emt 0:08:30]} Bg6 {[%emt 0:14:30]} 15. Re3 {[%emt 0:05:30]} Nd5 {[%emt 0:08:30]} 16. Bxd5 {[%emt 0:01:30]} Qxd5 {[%emt 0:00:30]} 17. Nb3 {[%emt 0:00:30]} Rad8 {[%emt 0:11:30]} 18. Re1 {[%emt 0:08:30]} a5 {[%emt 0:10:30]} 19. Ne5 {[%emt 0:07:30]} a4 {[%emt 0:02:30]} 20. Nxc6 {[%emt 0:04:30]} Qxc6 {[%emt 0:00:30]} 21. Na5 {[%emt 0:07:30]} Qb6 {[%emt 0:04:30]} 22. Re8 {[%emt 0:02:30]} Rdxe8 {[%emt 0:00:30]} 23. Qxe8 {[%emt 0:00:30]} Qxa5 {[%emt 0:00:00]} 24. Qe7 {[%emt 0:02:05]} f6 {[%emt 0:01:00]} 25. Qe6+ {[%emt 0:01:46]} Bf7 {[%emt 0:00:30]} 0-1

[Event "Turkish Cup 2022"]
[Site "Sakarya"]
[Date "2022.03.26"]
[Round "3.18"]
[White "Gulden, Egemen"]
[Black "Zaimov, Berk"]
[Result "1-0"]
[ECO "B10"]
[WhiteElo "2094"]
[BlackElo "1498"]
[Annotator "ChessBase"]
[PlyCount "73"]
[EventDate "2022.03.25"]
[EventType "swiss"]
[EventCountry "TUR"]
[SourceTitle "playchess.com"]
[Source "ChessBase"]
[SourceQuality "1"]
[TimeControl "5400+30"]

1. e4 {[%emt 0:02:00]} c6 {[%emt 0:01:00]} 2. d3 {[%emt 0:00:30]} d5 {[%emt 0:00:30]} 3. Nd2 {[%emt 0:00:30]} e5 {[%emt 0:01:30]} 4. Ngf3 {[%emt 0:00:30]} Bd6 {[%emt 0:01:30]} 5. d4 {[%emt 0:00:30]} Bg4 {[%emt 0:04:30]} 6. exd5 {[%emt 0:03:30]} cxd5 {[%emt 0:06:30]} 7. dxe5 {[%emt 0:00:30]} Bxe5 {[%emt 0:01:30]} 8. Bb5+ {[%emt 0:02:30]} Nc6 {[%emt 0:17:30]} 9. Qe2 {[%emt 0:01:30]} f6 {[%emt 0:00:30]} 10. h3 {[%emt 0:03:30]} Bxf3 {[%emt 0:02:30]} 11. Nxf3 {[%emt 0:00:00]} Qd6 {[%emt 0:00:30]} 12. c3 {[%emt 0:14:00]} Nge7 {[%emt 0:02:30]} 13. Be3 {[%emt 0:00:30]} Nf5 {[%emt 0:04:30]} 14. Rd1 {[%emt 0:04:30]} Nxe3 {[%emt 0:04:30]} 15. Qxe3 {[%emt 0:00:30]} O-O {[%emt 0:00:30]} 16. O-O {[%emt 0:00:30]} Bf4 {[%emt 0:02:30]} 17. Qd3 {[%emt 0:00:30]} Rad8 {[%emt 0:08:30]} 18. Bc4 {[%emt 0:13:30]} Ne7 {[%emt 0:10:30]} 19. Bb3 {[%emt 0:00:30]} Kh8 {[%emt 0:00:30]} 20. Rfe1 {[%emt 0:00:30]} Be5 {[%emt 0:00:00]} 21. Qe3 {[%emt 0:01:30]} d4 {[%emt 0:18:43]} 22. Nxd4 {[%emt 0:14:30]} Qb6 {[%emt 0:01:34]} 23. Ne6 {[%emt 0:03:30]} Rxd1 {[%emt 0:00:15]} 24. Rxd1 {[%emt 0:00:00]} Qxe3 {[%emt 0:00:54]} 25. fxe3 {[%emt 0:00:00]} Re8 {[%emt 0:05:29]} 26. Rd7 {[%emt 0:03:30]} Nf5 {[%emt 0:00:10]} 27. Kf2 {[%emt 0:01:30]} Nd6 {[%emt 0:01:39]} 28. Nxg7 {[%emt 0:02:30]} Ne4+ {[%emt 0:00:12]} 29. Kf3 {[%emt 0:00:30]} Ng5+ {[%emt 0:00:56]} 30. Ke2 {[%emt 0:00:30]} Rb8 {[%emt 0:00:31]} 31. Bd5 {[%emt 0:00:30]} h6 {[%emt 0:00:38]} 32. Nf5 {[%emt 0:00:30]} Nh7 {[%emt 0:01:49]} 33. Nxh6 {[%emt 0:00:30]} Nf8 {[%emt 0:00:06]} 34. Nf7+ {[%emt 0:01:30]} Kg7 {[%emt 0:00:46]} 35. Nxe5+ {[%emt 0:00:30]} Nxd7 {[%emt 0:00:17]} 36. Nxd7 {[%emt 0:00:00]} Rd8 {[%emt 0:00:20]} 37. Be6 {[%emt 0:00:00]} 1-0

[Event "Turkish Cup 2022"]
[Site "Sakarya"]
[Date "2022.03.26"]
[Round "3.19"]
[White "Kaygisiz, Ozgur Can"]
[Black "Kilic, Eray"]
[Result "0-1"]
[ECO "B90"]
[WhiteElo "1744"]
[BlackElo "2088"]
[Annotator "ChessBase"]
[PlyCount "74"]
[EventDate "2022.03.25"]
[EventType "swiss"]
[EventCountry "TUR"]
[SourceTitle "playchess.com"]
[Source "ChessBase"]
[SourceQuality "1"]
[TimeControl "5400+30"]

1. e4 {[%emt 0:01:00]} c5 {[%emt 0:01:00]} 2. Nf3 {[%emt 0:00:30]} d6 {[%emt 0:00:30]} 3. d4 {[%emt 0:00:30]} cxd4 {[%emt 0:00:30]} 4. Nxd4 {[%emt 0:00:30]} Nf6 {[%emt 0:00:30]} 5. Nc3 {[%emt 0:00:30]} a6 {[%emt 0:00:00]} 6. Be3 {[%emt 0:00:00]} e5 {[%emt 0:00:00]} 7. Nb3 {[%emt 0:01:00]} Be6 {[%emt 0:00:30]} 8. Qd2 {[%emt 0:02:30]} Nbd7 {[%emt 0:00:00]} 9. f3 {[%emt 0:01:30]} h5 {[%emt 0:00:00]} 10. O-O-O {[%emt 0:00:30]} Rc8 {[%emt 0:04:30]} 11. Be2 {[%emt 0:04:30]} Be7 {[%emt 0:03:30]} 12. Kb1 {[%emt 0:12:30]} b5 {[%emt 0:06:30]} 13. a3 {[%emt 0:00:30]} Nb6 {[%emt 0:01:30]} 14. Rhe1 {[%emt 0:07:30]} O-O {[%emt 0:07:30]} 15. f4 {[%emt 0:07:30]} Na4 {[%emt 0:03:30]} 16. Bf3 {[%emt 0:02:30]} Rxc3 {[%emt 0:07:30]} 17. bxc3 {[%emt 0:00:30]} Qc7 {[%emt 0:00:30]} 18. f5 {[%emt 0:04:30]} Nxc3+ {[%emt 0:06:30]} 19. Kb2 {[%emt 0:01:30]} Nxd1+ {[%emt 0:02:30]} 20. Rxd1 {[%emt 0:01:30]} Bc4 {[%emt 0:00:30]} 21. Bg5 {[%emt 0:01:30]} Rd8 {[%emt 0:04:30]} 22. Bxf6 {[%emt 0:04:30]} Bxf6 {[%emt 0:00:30]} 23. c3 {[%emt 0:00:30]} d5 {[%emt 0:07:30]} 24. exd5 {[%emt 0:01:30]} e4 {[%emt 0:00:30]} 25. d6 {[%emt 0:04:30]} Qc8 {[%emt 0:00:30]} 26. d7 {[%emt 0:01:30]} Qc7 {[%emt 0:00:30]} 27. Bxe4 {[%emt 0:02:30]} Bxb3 {[%emt 0:00:00]} 28. Kxb3 {[%emt 0:00:30]} Qc4+ {[%emt 0:00:00]} 29. Kb2 {[%emt 0:00:30]} Qxe4 {[%emt 0:00:30]} 30. Re1 {[%emt 0:00:30]} Rxd7 {[%emt 0:00:30]} 31. Qf2 {[%emt 0:03:30]} Qc4 {[%emt 0:00:30]} 32. Re8+ {[%emt 0:06:30]} Kh7 {[%emt 0:00:30]} 33. Qc2 {[%emt 0:03:30]} Rd3 {[%emt 0:00:30]} 34. Rc8 {[%emt 0:03:30]} Qxc8 {[%emt 0:00:30]} 35. Qxd3 {[%emt 0:00:00]} Qc4 {[%emt 0:00:00]} 36. Qf3 {[%emt 0:00:00]} Qg4 {[%emt 0:00:00]} 37. Qf2 {[%emt 0:01:30]} b4 {[%emt 0:00:00]} 0-1

[Event "Turkish Cup 2022"]
[Site "Sakarya"]
[Date "2022.03.26"]
[Round "3.20"]
[White "Dolek, Gokalp Deniz"]
[Black "Baltaci, Ismail Tarik"]
[Result "0-1"]
[ECO "A03"]
[WhiteElo "1520"]
[BlackElo "2033"]
[Annotator "ChessBase"]
[PlyCount "64"]
[EventDate "2022.03.25"]
[EventType "swiss"]
[EventCountry "TUR"]
[SourceTitle "playchess.com"]
[Source "ChessBase"]
[SourceQuality "1"]
[TimeControl "5400+30"]

1. f4 {[%emt 0:01:00]} d5 {[%emt 0:01:00]} 2. b3 {[%emt 0:00:00]} Nf6 {[%emt 0:01:30]} 3. Bb2 {[%emt 0:00:00]} g6 {[%emt 0:00:30]} 4. Nf3 {[%emt 0:00:30]} Bg7 {[%emt 0:00:30]} 5. e3 {[%emt 0:00:30]} O-O {[%emt 0:00:30]} 6. Be2 {[%emt 0:00:30]} c5 {[%emt 0:00:30]} 7. O-O {[%emt 0:00:30]} Nc6 {[%emt 0:00:30]} 8. Bb5 {[%emt 0:00:00]} Qb6 {[%emt 0:02:30]} 9. Bxc6 {[%emt 0:00:00]} Qxc6 {[%emt 0:03:30]} 10. Qe1 {[%emt 0:01:30]} Rd8 {[%emt 0:20:30]} 11. d3 {[%emt 0:01:30]} Ne8 {[%emt 0:20:30]} 12. Bxg7 {[%emt 0:00:30]} Kxg7 {[%emt 0:00:30]} 13. Nbd2 {[%emt 0:00:30]} b6 {[%emt 0:01:30]} 14. Ne5 {[%emt 0:05:30]} Qc7 {[%emt 0:04:30]} 15. Qh4 {[%emt 0:04:30]} Nd6 {[%emt 0:00:30]} 16. g4 {[%emt 0:05:30]} f6 {[%emt 0:05:30]} 17. Nef3 {[%emt 0:01:30]} Qd7 {[%emt 0:01:30]} 18. h3 {[%emt 0:03:30]} h5 {[%emt 0:00:30]} 19. Nh2 {[%emt 0:03:30]} Rh8 {[%emt 0:01:30]} 20. Qg3 {[%emt 0:00:30]} hxg4 {[%emt 0:00:30]} 21. hxg4 {[%emt 0:00:30]} Bb7 {[%emt 0:02:30]} 22. Nhf3 {[%emt 0:03:30]} Rh7 {[%emt 0:01:30]} 23. Kg2 {[%emt 0:00:30]} Rah8 {[%emt 0:03:30]} 24. Rh1 {[%emt 0:00:00]} Ne4 {[%emt 0:01:30]} 25. Rxh7+ {[%emt 0:03:00]} Rxh7 {[%emt 0:00:30]} 26. dxe4 {[%emt 0:00:30]} dxe4 {[%emt 0:00:00]} 27. Re1 {[%emt 0:04:30]} exf3+ {[%emt 0:00:00]} 28. Nxf3 {[%emt 0:00:30]} Qd2+ {[%emt 0:00:30]} 29. Kf1 {[%emt 0:00:30]} Rh1+ {[%emt 0:03:30]} 30. Ng1 {[%emt 0:00:00]} Qxc2 {[%emt 0:00:30]} 31. Qf2 {[%emt 0:01:00]} Ba6+ {[%emt 0:00:00]} 32. Kg2 {[%emt 0:00:00]} Rh2+ {[%emt 0:00:00]} 0-1

[Event "Turkish Cup 2022"]
[Site "Sakarya"]
[Date "2022.03.26"]
[Round "3.21"]
[White "Yavuz, Efe Metehan"]
[Black "Aydemir, Umut"]
[Result "1-0"]
[ECO "E60"]
[WhiteElo "2054"]
[BlackElo "1554"]
[Annotator "ChessBase"]
[PlyCount "48"]
[EventDate "2022.03.25"]
[EventType "swiss"]
[EventCountry "TUR"]
[SourceTitle "playchess.com"]
[Source "ChessBase"]
[SourceQuality "1"]
[TimeControl "5400+30"]

1. Nf3 {[%emt 0:01:00]} Nf6 {[%emt 0:01:00]} 2. g3 {[%emt 0:00:30]} g6 {[%emt 0:00:30]} 3. Bg2 {[%emt 0:00:00]} Bg7 {[%emt 0:00:30]} 4. O-O {[%emt 0:00:00]} O-O {[%emt 0:00:30]} 5. d4 {[%emt 0:00:30]} c5 {[%emt 0:00:30]} 6. d5 {[%emt 0:00:30]} d6 {[%emt 0:00:00]} 7. c4 {[%emt 0:04:30]} Bf5 {[%emt 0:17:00]} 8. h3 {[%emt 0:08:30]} Na6 {[%emt 0:03:30]} 9. Nfd2 {[%emt 0:08:30]} Nc7 {[%emt 0:04:30]} 10. Nc3 {[%emt 0:00:30]} a6 {[%emt 0:02:30]} 11. e4 {[%emt 0:02:30]} Bd7 {[%emt 0:01:30]} 12. f4 {[%emt 0:02:30]} Nfe8 {[%emt 0:06:30]} 13. Re1 {[%emt 0:09:30]} b5 {[%emt 0:02:30]} 14. e5 {[%emt 0:04:30]} Rb8 {[%emt 0:07:30]} 15. b3 {[%emt 0:09:30]} a5 {[%emt 0:07:30]} 16. Bb2 {[%emt 0:07:30]} a4 {[%emt 0:05:30]} 17. cxb5 {[%emt 0:03:30]} axb3 {[%emt 0:01:30]} 18. a4 {[%emt 0:01:30]} e6 {[%emt 0:05:30]} 19. Nxb3 {[%emt 0:14:30]} exd5 {[%emt 0:03:30]} 20. Nxd5 {[%emt 0:00:38]} Nxd5 {[%emt 0:00:30]} 21. Qxd5 {[%emt 0:02:33]} Be6 {[%emt 0:00:30]} 22. Qd1 {[%emt 0:01:44]} dxe5 {[%emt 0:03:30]} 23. Qxd8 {[%emt 0:00:39]} Rxd8 {[%emt 0:00:30]} 24. Nxc5 {[%emt 0:00:20]} exf4 {[%emt 0:00:30]} 1-0